Cogmind - Beta 13 @@@ ROGUE MODE // 2024.04.01 @ 20:52:58 Player: U1144KUT Result: Self-destructed Performance ------------- Evolutions (1) 500 Regions Visited (2) 400 Robots Destroyed (36) 180 Value Destroyed (849) 849 Prototype IDs (4) 80 Alien Tech Used (0) 0 Bonus (0) 0 TOTAL SCORE: 2009 Bonus ------- None Cogmind --------- Core Integrity 44/400 Matter 272/300 Energy 4/280 System Corruption 0% Temperature Cool (0) Movement Walking (190) Ox1 Location -9/Materials Parts ------- > --- POWER (1) -------- Heavy Ion Engine > --- PROPULSION (2) --- Aluminum Leg Improved Aluminum Leg > --- UTILITY (4) ------ Medium Storage Unit Signal Interpreter Propulsion Shielding Shield Generator > --- WEAPON (2) ------- Enhanced Autogun Enhanced Autogun > --- INVENTORY (10) --- Light Ion Engine Light Ion Engine Signal Interpreter Transport Network Coupler Utility Shielding Grenade Launcher Datajack Peak State ------------ > --- POWER ------------ Light Ion Engine > --- PROPULSION ------- Aluminum Leg Improved Aluminum Leg > --- UTILITY ---------- Medium Storage Unit Signal Interpreter Utility Shielding Hacking Suite > --- WEAPON ----------- Enhanced Autogun Enhanced Autogun > --- INVENTORY -------- Light Ion Engine Light Ion Engine Signal Interpreter Transport Network Coupler Propulsion Shielding Shield Generator Enhanced Autogun Grenade Launcher Datajack [Rating: 19] Favorites ----------- Power Light Ion Engine Engine Light Ion Engine Propulsion Compact Wheel Leg Aluminum Leg Wheel Compact Wheel Utility Medium Storage Unit Device Sensor Array Storage Medium Storage Unit Processor Signal Interpreter Hackware Hacking Suite Protection Utility Shielding Weapon Medium Laser Energy Gun Medium Laser Ballistic Gun Assault Rifle Launcher Grenade Launcher Special Melee Weapon Datajack Build | -11 -10 -9 ------- Run | Yrd Mat Mat Slots Evolved 2 | . . 2 Power . | . . . Propulsion . | . . . Utility 2 | . . 2 Weapon . | . . . Parts Attached 49 | 6 14 29 Power 7 | 1 2 4 Engine 7 | 1 2 4 Core . | . . . Reactor . | . . . Propulsion 11 | 2 2 7 Treads . | . . . Leg 3 | . . 3 Wheel 8 | 2 2 4 Hover . | . . . Flight . | . . . Utility 14 | 1 5 8 Device 2 | . 1 1 Storage 3 | 1 2 . Processor 2 | . 1 1 Hackware 2 | . . 2 Protection 5 | . 1 4 Artifact . | . . . Weapon 17 | 2 5 10 Energy Gun 6 | . 3 3 Energy Cannon . | . . . Ballistic Gun 5 | 2 1 2 Ballistic Cannon . | . . . Launcher 1 | . . 1 Special Weapon . | . . . Impact Weapon . | . . . Slashing Weapon . | . . . Piercing Weapon . | . . . Special Melee Weapon 5 | . 1 4 Unidentified Prototypes 2 | . . 2 Parts Lost 13 | . 4 9 Power 4 | . 1 3 Propulsion 3 | . 1 2 Utility 3 | . . 3 Weapon 3 | . 2 1 Highest Loss Streak 5 | . 2 5 To Critical Strikes . | . . . Average Slot Usage (%) 94 | . 89 97 Engine 11 | . 13 10 Leg 4 | . . 7 Wheel 17 | . 23 13 Device 3 | . 3 2 Storage 11 | . 13 11 Processor 6 | . . 11 Hackware 5 | . . 9 Protection 8 | . 6 9 Energy Gun 10 | . 9 11 Ballistic Gun 10 | . 15 6 Special Melee Weapon 3 | . 2 3 Naked Turns . | . . . Heaviest Build 27 | 12 20 27 Greatest Support 32 | 32 32 32 Greatest Overweight (x) 1 | . 1 1 Average Overweight (x) . | . . . Largest Inventory Capacity 10 | 8 10 10 Average Capacity 9 | 7 9 10 Most Carried 10 | 5 10 10 Average Carried 7 | 1 5 8 Final Capacity 10 | 8 10 10 Final Carried 10 | 1 10 7 Class Distribution -------------------- 83% | Mutant 11% | Hacker-Mutant 4% | Scavenger-Mutant Dominant Class ---------------- Mutant | -10/Materials Mutant | -9/Materials Resources | -11 -10 -9 ----------- Run | Yrd Mat Mat Matter Collected 1019 | 189 429 401 Remotely . | . . . Salvage Created 1090 | . 487 603 Parts 66 | . 32 34 Haulers Intercepted 3 | . 2 1 Recyclers Shooed 1 | . . 1 Parts Field Recycled . | . . . Retrieved Matter . | . . . Parts Self-Destructed . | . . . Prevented . | . . . Kills | -11 -10 -9 ------- Run | Yrd Mat Mat Combat Hostiles Destroyed 28 | . 13 15 Guns 27 | . 13 14 AOE 1 | . . 1 Classes Destroyed 7 | . 4 3 Hauler 3 | . 2 1 Operator 1 | . . 1 Watcher 4 | . 2 2 Swarmer 12 | . 6 6 Grunt 12 | . 7 5 Duelist 1 | . . 1 Sentry 3 | . . 3 Best Kill Streak 3 | . 3 3 Combat Bots Only 3 | . 3 3 Max Kills in Single Turn 2 | . 1 2 Gunslinging 1 | . . 1 Exploded 1 | . . 1 Melee . | . . . Uniques/NPCs Destroyed . | . . . Combat | -11 -10 -9 -------- Run | Yrd Mat Mat Hostile Shots Fired 167 | . 74 93 Missed 48 | . 23 25 Damage Taken 1483 | . 493 990 Core 471 | . 115 356 Absorbed by Shields 50 | . . 50 Redirected to Shielding 16 | . 4 12 Regen/Repaired (Parts) 106 | . 44 62 Core Remaining (%) 77 | 100 54 . Volleys Fired 153 | . 81 72 Largest 2 | . 2 2 Hottest 100 | . 60 100 Shots Fired 254 | . 137 117 Gun 251 | . 137 114 Cannon . | . . . Launcher 3 | . . 3 Special . | . . . Kinetic 121 | . 103 18 Thermal 130 | . 34 96 Explosive 3 | . . 3 Electromagnetic . | . . . Robot Hit Streak 10 | . 8 10 Robot Miss Streak 6 | . 6 5 Penetration Max . | . . . Secondary Targets 1 | . . 1 Max Gunslinging Chain 1 | . . 1 Shots Hit Robots 160 | . 75 85 Core Hits 61 | . 28 33 Critical Kills . | . . . Critical Parts Destroyed . | . . . Critical Strikes 2 | . . 2 Burn 2 | . . 2 Melee Attacks 13 | . 1 12 Impact . | . . . Slashing . | . . . Piercing . | . . . Sneak Attacks 13 | . 1 12 Combat Hostiles . | . . . Follow-up Attacks . | . . . Damage Inflicted 1987 | . 924 1063 Guns 1896 | . 915 981 Cannons . | . . . Explosions 82 | . . 82 Melee . | . . . Ramming 9 | . 9 . Kinetic 916 | . 726 190 Thermal 980 | . 189 791 Explosive 82 | . . 82 Electromagnetic . | . . . Impact . | . . . Slashing . | . . . Piercing . | . . . Highest Corruption . | . . . Average Corruption . | . . . Corruption Purged . | . . . Corruption Blocked . | . . . Overload Shots . | . . . Overflow Damage . | . . . Projectiles . | . . . Explosions . | . . . Melee . | . . . Knockbacks . | . . . Impact . | . . . Kinetic . | . . . Secondary . | . . . Self-Inflicted Damage 200 | . 4 196 Shots 2 | . . 2 Rammed 1 | . 1 . Targets Rammed 1 | . 1 . Kicked . | . . . Crushed . | . . . Highest Temperature 278 | . 30 278 Average Temperature 69 | . 11 85 Received Heat Transfer 438 | . 141 297 Effects 2 | . . 2 Interference 2 | . . 2 Siege Activations . | . . . Robots Corrupted . | . . . Combat Hostiles . | . . . Parts Fried . | . . . Impact Corruptions . | . . . Robots Melted . | . . . Combat Hostiles . | . . . Parts Melted 8 | . 1 7 Heat Transferred 2987 | . 508 2479 Parts Sabotaged . | . . . Parts Stolen . | . . . Parts Stripped . | . . . Power Chain Reactions . | . . . Alert | -11 -10 -9 ------- Run | Yrd Mat Mat Peak Influence 227 | . 227 186 Initial 9 | . . 9 Average 65 | . 84 54 Maximum Alert Level 1 | . 1 . Low Security (%) 96 | 100 92 100 Level 1 3 | . 7 . Level 2 . | . . . Level 3 . | . . . Level 4 . | . . . Level 5 . | . . . High Security . | . . . Max Security . | . . . Squads Dispatched 6 | . 3 3 Investigation 2 | . 2 . Extermination . | . . . Reinforcement 4 | . 1 3 Assault . | . . . Garrison . | . . . Intercept . | . . . Searches Triggered . | . . . Construction Impeded . | . . . Haulers Reinforced . | . . . Active Scanning Responses . | . . . Cargo Convoy Interrupts . | . . . Stealth | -11 -10 -9 --------- Run | Yrd Mat Mat Distress Signals 2 | . 2 . Communications Jammed . | . . . Distress Signals . | . . . Times Spotted 56 | . 25 31 Peak Tracking Total 4 | . 3 4 Tactical Retreats 1 | . . 1 Traps | -11 -10 -9 ------- Run | Yrd Mat Mat Traps Triggered . | . . . Indirectly . | . . . Trap Hack Attempts . | . . . Triggered . | . . . Disarmed 10 | . . 10 Reprogrammed . | . . . Reused . | . . . Traps Extracted . | . . . Installed . | . . . Triggered . | . . . Machines | -11 -10 -9 ---------- Run | Yrd Mat Mat Machines Disabled 5 | . 2 3 Max in Single Turn 2 | . 1 2 Machines Repaired . | . . . Machines Dismantled . | . . . Machines Sabotaged . | . . . Overloaded Fab Kills . | . . . Hacking | -11 -10 -9 --------- Run | Yrd Mat Mat Machines Accessed 19 | . 9 10 Terminals 13 | . 6 7 Fabricators . | . . . Repair Stations 2 | . 1 1 Recycling Units 3 | . 2 1 Scanalyzers 1 | . . 1 Garrison Access . | . . . Total Hacks 48 | . 23 25 Successful 26 | . 10 16 Failed 22 | . 13 9 Catastrophic 2 | . 2 . Database Lockouts . | . . . Manual 7 | . 3 4 Terminals 32 | . 15 17 Fabricators . | . . . Repair Stations 8 | . 4 4 Recycling Units 6 | . 4 2 Scanalyzers 2 | . . 2 Garrison Access . | . . . Terminal Hacks 18 | . 6 12 Record 1 | . 1 . Robot Analysis 1 | . 1 . Prototype ID Bank 1 | . . 1 Unreport Threat 2 | . . 2 Locate Traps 3 | . 1 2 Disarm Traps 2 | . . 2 Maintenance Status 1 | . . 1 Transport Status 1 | . 1 . Hauler Manifests 2 | . 1 1 Registered Components 2 | . 1 1 Zone Layout 2 | . . 2 Fabricator Hacks . | . . . Repair Station Hacks 4 | . 2 2 Scan Component 2 | . 1 1 Repair 2 | . 1 1 Recycling Unit Hacks 2 | . 2 . Report Inventory 2 | . 2 . Scanalyzer 2 | . . 2 Insert Component 1 | . . 1 Analyze 1 | . . 1 Garrison Access Hacks . | . . . Unauthorized Hacks . | . . . Terminals . | . . . Fabricators . | . . . Repair Stations . | . . . Recycling Units . | . . . Scanalyzers . | . . . Garrison Access . | . . . Data Cores Recovered . | . . . Used . | . . . Hacking Detections 17 | . 9 8 Full Trace Events 3 | . 3 . Feedback Events . | . . . Feedback Blocked . | . . . Robot Schematics Acquired . | . . . Robots Built . | . . . Authchips . | . . . Time . | . . . Total Robot Build Rating . | . . . Part Schematics Acquired 1 | . . 1 Parts Built . | . . . Authchips . | . . . Time . | . . . Total Part Build Rating . | . . . Parts Repaired 2 | . 1 1 Time 58 | . 26 32 Parts Recycled . | . . . Recycled Matter . | . . . Retrieved Matter . | . . . Retrieved Components . | . . . Parts Scanalyzed 1 | . . 1 Part Schematics Acquired 1 | . . 1 Parts Damaged 1 | . . 1 Bothacking | -11 -10 -9 ------------ Run | Yrd Mat Mat Used RIF Installer . | . . . Robots Hacked 8 | . 1 7 Non-combat 8 | . 1 7 Combat . | . . . Robot Hacks Applied 11 | . 1 10 parse_system 3 | . 1 2 no_distress 8 | . . 8 Relay Couplers Released . | . . . Fabnet Peak Effective % . | . . . Robots Rewired . | . . . Allies Hacked . | . . . Hacks Repelled . | . . . Allies | -11 -10 -9 -------- Run | Yrd Mat Mat Total Allies . | . . . Largest Group . | . . . Highest-Rated Group . | . . . Highest-Rated Ally . | . . . Total Orders . | . . . Ally Attacks . | . . . Total Damage . | . . . Kills . | . . . Allies Corrupted . | . . . Allies Melted . | . . . Intel | -11 -10 -9 ------- Run | Yrd Mat Mat Robot Analysis Total 1 | . 1 . Derelict Logs Recovered . | . . . Drone Launches . | . . . Drone Recoveries . | . . . Exploration | -11 -10 -9 ------------- Run | Yrd Mat Mat Turns Passed 3086 | 63 1278 1745 Spaces Moved 2144 | 42 937 1165 Core 10 | 10 . . Treads . | . . . Legs 392 | . . 392 Wheels 1742 | 32 937 773 Hover . | . . . Flight . | . . . Fastest Speed 50 | 50 100 100 Average Speed 108 | 88 104 112 Slowest Speed 190 | 100 115 190 Overloaded Moves . | . . . Propulsion Burnouts . | . . . Robots Hopped . | . . . Cave-ins Triggered . | . . . Exploration Rate (%) 65 | 4 99 92 Regions Visited 2 Branch Regions . Pre-discovered Areas . | . . . Known Exits Taken . | . . . Unknown Exits Taken 2 | 1 1 . Scrap Searched . | . . . Spaces Dug . | . . . Terrain Destroyed 47 | . . 47 Melee . | . . . Projectile . | . . . AOE 47 | . . 47 Terrain Rammed . | . . . Walls Destroyed . | . . . Machines Disabled . | . . . Actions | -11 -10 -9 --------- Run | Yrd Mat Mat Total 2642 | 67 1099 1476 Wait 214 | 13 25 176 Move 2142 | 41 936 1165 Hop . | . . . Pick Up 51 | 7 29 15 Fast Attach 2 | . 2 . Attach 28 | 6 8 14 Detach 1 | . . 1 Swap 19 | . 4 15 Drop 18 | . 12 6 Fire 153 | . 81 72 Melee 13 | . 1 12 Ram 1 | . 1 . Kick . | . . . Crush . | . . . Escape Stasis . | . . . Rewire . | . . . Trap . | . . . Miscellaneous . | . . . Route ------- -11/Scrapyard -10/Materials (discovered 6 exits: *Mat x3 / [*Min x2] / [*Sub]) -9/Materials (discovered 6 exits: *Mat x3 / [*Min] / *Sto x2) History --------- Turn | Location | Event 2 | -11/Scrapyard | Met Revision 17 20 | -11/Scrapyard | Discovered new exit (range 16) 64 | -11/Scrapyard | Entered Materials 313 | -10/Materials | Build established: Mutant 374 | -10/Materials | Discovered new exit (range 7) 438 | -10/Materials | Discovered new exit (range 10) 580 | -10/Materials | Discovered new exit (range 14) 809 | -10/Materials | Discovered new exit (range 4) 925 | -10/Materials | Repaired Med. Storage Unit 1097 | -10/Materials | Discovered new exit (range 8) 1294 | -10/Materials | Discovered new exit (range 16) 1342 | -10/Materials | Entered another Materials area 1342 | -9/Materials | Evolved 2 slots: Utility x2 1770 | -9/Materials | Discovered new exit (range 12) 1911 | -9/Materials | Discovered new exit (range 4) 1915 | -9/Materials | Identified exit to Storage 2073 | -9/Materials | Discovered exit to Storage (range 6) 2224 | -9/Materials | Discovered new exit (range 7) 2329 | -9/Materials | Build established: Hacker-Mutant 2465 | -9/Materials | Lost 5 parts (1p2n1u1w) 2472 | -9/Materials | Core integrity fell below 50% 2526 | -9/Materials | Discovered new exit (range 14) 2622 | -9/Materials | Repaired Imp. Aluminum Leg 2642 | -9/Materials | Identified exit to Materials 2872 | -9/Materials | Build established: Mutant 2885 | -9/Materials | Discovered exit to Materials (range 13) 3087 | -9/Materials | Self-destructed Last Messages --------------- >>Layout(Zone) Retrieving Zone 1V layout... Downloaded map data. >>Alert(Purge) Purged threat record, alert level lowered. 02885_ EXIT=FOUND: MATERIALS 02891_ Connecting with Scanalyzer... >>Insert(Enh. Autogun) Scanning Enh. Autogun... Ready to analyze. >>Scanalyze Scanning: Enh. Autogun... Schematic downloaded. 02891_ Connecting with Scanalyzer... 02891_ Dropped Broken Enh. Autogun. 02891_ Connecting with Scanalyzer... 02898_ Acquired Prototype Engine. 02899_ Identified Hvy. Ion Engine. 02923_ T-07 Excavator is excavating. 03087_ Nuclear Reactor explodes. Map ----- +----------------------------------------------------+ | ## # > # # # "" #??"" ????? | | = # ########### # #???" ?????? | | ######## # # """ # # #??? ?????? | | ???????# ##+##+## "T" """ # ###+########+####### | | ???????# ## """ # | | #####??# ##^ """ + % | | #??# ## # """ ]! | | #??# ## ^^ # """ ] ]]] ##"### | | #??# ## ^ # """ ]]] ##"### | | " #??# ## # ]]] #* | | " #??# #####+###### # """ | | " ##??# #???# # """ | | #???# ##### % # """ | | #???#+## % "T" #=% ? | | #??????# ############### !!?? | | #??????# """ """ ak#?????????????##"#?? | | [#??????# """"""""" #????????????####### | | #??????# """"" " ############## # | | + ??# # | | ! # "T" ?# ### % > # | | =% ##?#???# " % % % # | | ####### != T ############# %# | | "" * % != " #?????????###+### | | T #????????## * | | #????????## | | ############### @ #???????## | | ###########????### #????????# | | #??????### #????????# | | ########## #????????# | | #????????# | | ##### ##????????# | | #+###### #???# #?????########### | | ## #???### ## ###?????# # | | ## #??????##?###???????# *% | | ## % %% #???????????????????# # | | ## ######## #???????????????????# # | | ## #??????# #???????????????????########### | | + #??????# #?????????????????????????????# | | ### #??????# #???????????????????????????### | | #?# #??????# ###?????????????????????????# | | #?# #??????# #?????????????????????????# | | #######?# #??????# #?????????????????????????# | | ????????# #??????# ##????????????????????????# | | ????????# ####???# T#????????????????????????# | | ?????####+## ##### ##????????????????????????## | | ###### # # #??????????????????????????# | | # + #""" # ########???????????????????# | | # # #"R # # #???????????????????# | | # # #""" # # #???????????????????# | | # + # "" # # #???????????????????# | +----------------------------------------------------+ Best States ------------- Heat Dissipation 28 Energy Generation 14 Energy Capacity 280 Matter Stores 300 Matter Capacity 300 Sight Range 16 Robot Scan Range 14 Terrain Scan Density 10 Propulsion Shielding 33 Utility Shielding 33 Evasion (%) 55 Targeting Accuracy 5 Offensive Hacking 20 Item Schematics ----------------- Enh. Autogun | -9/Materials | Scanalyzed Robot Schematics ------------------ None Fabricated ------------ Nothing Alien Tech Used ----------------- None Achievements -------------- Storm Trooper Challenges ------------ None Game ------ Seed AutogunHelicalMediator Manual? 0 Play Time 00:57:54 Cumulative 4.9 hours Start 2024.04.01 @ 14:25:04 End 2024.04.01 @ 20:52:58 Sessions 3 Manual Loads 0 Difficulty Rogue Special Mode None Game No. 3 Rogue 1 Adventurer 2 Explorer 0 Win Type - Total 0 Types 0/0/0/0/0/0/0/0/0 Lore% 5 Gallery% 7 Achievement% 10 Wizard Run 0 Options --------- Layout 0 ASCII 0 Keyboard 0 Movement Mouse Keybinds 0 Fullscreen 2 Font 24/Terminus Map View 76x50 Zoom Use 0% Tactical HUD 1 Map Filters NONE Filters NONE Steam 1 RUN: c497162b-abe3-44a2-bd6d-f84b9bb728d9